[Event "Wuerttemberg Rapid Teams 2024"]
[Site "B?blingen, Germany"]
[Date "2024.04.13"]
[Round "8.3"]
[White "Kocharin, Timur"]
[Black "Freiherr von Hauff, Christopher"]
[Result "1/2-1/2"]
[ECO "B15"]
[WhiteElo "2250"]
[BlackElo "1960"]
[Annotator "RC"]
[PlyCount "216"]
[EventDate "2024.04.13"]
[EventType "team-tourn"]
[SourceTitle "playchess.com"]
[Source "ChessBase"]
[SourceQuality "1"]
[TimeControl "900+5"]

1. e4 {[%emt 0:00:02]} c6 {[%emt 0:00:12]} 2. d4 {[%emt 0:00:04]} d5 {[%emt 0:00:02]} 3. Nc3 {[%emt 0:00:01]} dxe4 {[%emt 0:00:02]} 4. Nxe4 {[%emt 0:00:01]} Nf6 {[%emt 0:00:02]} 5. Nxf6+ {[%emt 0:00:01]} exf6 {[%emt 0:00:03]} 6. c3 {[%emt 0:00:01]} Bd6 {[%emt 0:00:02]} 7. Bd3 {[%emt 0:00:01]} O-O {[%emt 0:00:07]} 8. Qc2 {[%emt 0:00:02]} Re8+ {[%emt 0:00:01]} 9. Ne2 {[%emt 0:00:01]} h5 {[%emt 0:00:01]} 10. Be3 {[%emt 0:00:09]} Nd7 {[%emt 0:00:04]} 11. O-O-O {[%emt 0:01:07]} h4 {[%emt 0:00:38]} 12. Kb1 {[%emt 0:00:42]} Rb8 {[%emt 0:00:15]} 13. Nf4 {[%emt 0:00:47]} Nf8 {[%emt 0:00:28]} 14. g3 {[%emt 0:00:31]} h3 {[%emt 0:00:05]} 15. Bf5 {[%emt 0:00:15]} Bxf4 {[%emt 0:01:29]} 16. Bxf4 {[%emt 0:00:22]} Bxf5 {[%emt 0:00:09]} 17. Qxf5 {[%emt 0:00:02]} Qc8 {[%emt 0:00:01]} 18. Qh5 {[%emt 0:00:35]} g6 {[%emt 0:00:16]} 19. Qh6 {[%emt 0:00:27]} Qf5+ {[%emt 0:00:18]} 20. Ka1 {[%emt 0:00:20]} Rbd8 {[%emt 0:00:03]} 21. g4 {[%emt 0:00:44]} Qxg4 {[%emt 0:00:14]} 22. Rhg1 {[%emt 0:00:09]} Qf5 {[%emt 0:00:04]} 23. Rg3 {[%emt 0:00:29]} Nh7 {[%emt 0:00:54]} 24. Rdg1 {[%emt 0:00:41]} Kh8 {[%emt 0:00:38]} 25. Rxh3 {[%emt 0:00:46]} g5 {[%emt 0:00:04]} 26. Be3 {[%emt 0:03:40]} Qg6 {[%emt 0:00:13]} 27. Qh5 {[%emt 0:00:24]} Qxh5 {[%emt 0:00:26]} 28. Rxh5 {[%emt 0:00:01]} Re4 {[%emt 0:00:16]} 29. Kb1 {[%emt 0:00:48]} Kg7 {[%emt 0:00:25]} 30. Rh3 {[%emt 0:00:27]} Nf8 {[%emt 0:00:32]} 31. f4 {[%emt 0:00:36]} Rde8 {[%emt 0:00:02]} 32. Bc1 {[%emt 0:00:11]} Re1 {[%emt 0:00:17]} 33. Rhg3 {[%emt 0:00:17]} Nh7 {[%emt 0:00:09]} 34. h4 {[%emt 0:00:11]} Kg6 {[%emt 0:00:45]} 35. fxg5 {[%emt 0:00:58]} fxg5 {[%emt 0:00:02]} 36. hxg5 {[%emt 0:00:02]} Rxg1 {[%emt 0:00:03]} 37. Rxg1 {[%emt 0:00:01]} Nf8 {[%emt 0:00:02]} 38. Kc2 {[%emt 0:00:07]} Ne6 {[%emt 0:00:03]} 39. Kd3 {[%emt 0:00:25]} Rh8 {[%emt 0:00:07]} 40. Rf1 {[%emt 0:00:47]} Rh4 {[%emt 0:00:40]} 41. Rf6+ {[%emt 0:00:21]} Kg7 {[%emt 0:00:01]} 42. Rf1 {[%emt 0:00:10]} Rg4 {[%emt 0:00:04]} 43. Rf5 {[%emt 0:00:07]} Kf8 {[%emt 0:00:18]} 44. b3 {[%emt 0:00:12]} Ke7 {[%emt 0:00:05]} 45. Ba3+ {[%emt 0:00:02]} Ke8 {[%emt 0:00:02]} 46. Re5 {[%emt 0:00:16]} Rxg5 {[%emt 0:00:03]} 47. Ke4 {[%emt 0:00:12]} Rg4+ {[%emt 0:00:06]} 48. Kd3 {[%emt 0:00:04]} Rg2 {[%emt 0:00:03]} 49. Ra5 {[%emt 0:00:06]} a6 {[%emt 0:00:03]} 50. Bc1 {[%emt 0:00:04]} Rg3+ {[%emt 0:00:06]} 51. Kc4 {[%emt 0:00:04]} Ke7 {[%emt 0:00:42]} 52. Ba3+ {[%emt 0:00:01]} Ke8 {[%emt 0:00:03]} 53. Bc1 {[%emt 0:00:01]} f6 {[%emt 0:00:10]} 54. Rh5 {[%emt 0:00:11]} Kd7 {[%emt 0:00:08]} 55. Rh7+ {[%emt 0:00:01]} Rg7 {[%emt 0:00:01]} 56. Rxg7+ {[%emt 0:00:26]} Nxg7 {[%emt 0:00:01]} 57. d5 {[%emt 0:00:03]} Nf5 {[%emt 0:00:01]} 58. dxc6+ {[%emt 0:00:01]} Kxc6 {[%emt 0:00:02]} 59. Bf4 {[%emt 0:00:07]} Nd6+ {[%emt 0:00:10]} 60. Kd4 {[%emt 0:00:01]} Nb5+ {[%emt 0:00:02]} 61. Kd3 {[%emt 0:00:02]} Kd7 {[%emt 0:00:03]} 62. a4 {[%emt 0:00:08]} Na7 {[%emt 0:00:01]} 63. b4 {[%emt 0:00:05]} Ke6 {[%emt 0:00:08]} 64. c4 {[%emt 0:00:01]} Nc6 {[%emt 0:00:07]} 65. b5 {[%emt 0:00:11]} Ne5+ {[%emt 0:00:01]} 66. Kd4 {[%emt 0:00:02]} Ng6 {[%emt 0:00:15]} 67. bxa6 {[%emt 0:00:13]} bxa6 {[%emt 0:00:03]} 68. Bc7 {[%emt 0:00:02]} Kd7 {[%emt 0:00:02]} 69. Bb8 {[%emt 0:00:02]} Kc6 {[%emt 0:00:04]} 70. Ke4 {[%emt 0:00:04]} Ne7 {[%emt 0:00:05]} 71. Ba7 {[%emt 0:00:02]} Kd6 {[%emt 0:00:04]} 72. Bd4 {[%emt 0:00:03]} f5+ {[%emt 0:00:01]} 73. Kf4 {[%emt 0:00:11]} Ke6 {[%emt 0:00:01]} 74. Be3 {[%emt 0:00:06]} Ng6+ {[%emt 0:00:06]} 75. Kg5 {[%emt 0:00:02]} Ne5 {[%emt 0:00:01]} 76. c5 {[%emt 0:00:06]} Nc4 {[%emt 0:00:01]} 77. Bc1 {[%emt 0:00:13]} Na5 {[%emt 0:00:04]} 78. Kf4 {[%emt 0:00:02]} Nc6 {[%emt 0:00:05]} 79. Bb2 {[%emt 0:00:04]} Ne7 {[%emt 0:00:03]} 80. Ba3 {[%emt 0:00:07]} Nd5+ {[%emt 0:00:03]} 81. Kf3 {[%emt 0:00:03]} Nc3 {[%emt 0:00:07]} 82. a5 {[%emt 0:00:05]} Nd5 {[%emt 0:00:02]} 83. Ke2 {[%emt 0:00:03]} Kd7 {[%emt 0:00:01]} 84. Kd3 {[%emt 0:00:03]} Kc6 {[%emt 0:00:01]} 85. Kc4 {[%emt 0:00:03]} f4 {[%emt 0:00:03]} 86. Bb2 {[%emt 0:00:05]} f3 {[%emt 0:00:03]} 87. Bd4 {[%emt 0:00:01]} Nf4 {[%emt 0:00:04]} 88. Be3 {[%emt 0:00:06]} Nh3 {[%emt 0:00:01]} 89. Kd3 {[%emt 0:00:04]} Kb5 {[%emt 0:00:07]} 90. Kd2 {[%emt 0:00:05]} Kc6 {[%emt 0:00:12]} 91. Kd3 {[%emt 0:00:03]} Kd5 {[%emt 0:00:01]} 92. Kd2 {[%emt 0:00:03]} Kc6 {[%emt 0:00:31]} 93. Kd3 {[%emt 0:00:00]} Kb5 {[%emt 0:00:01]} 94. Kd2 {[%emt 0:00:01]} f2 {[%emt 0:00:02]} 95. Ke2 {[%emt 0:00:01]} Kc6 {[%emt 0:00:36]} 96. Kf1 {[%emt 0:00:04]} Kd5 {[%emt 0:00:13]} 97. Bxf2 {[%emt 0:00:28]} Nf4 {[%emt 0:00:10]} 98. Ke1 {[%emt 0:00:04]} Nd3+ {[%emt 0:00:01]} 99. Ke2 {[%emt 0:00:02]} Nb4 {[%emt 0:00:01]} 100. Kd2 {[%emt 0:00:04]} Nc6 {[%emt 0:00:01]} 101. Kc3 {[%emt 0:00:04]} Nxa5 {[%emt 0:00:02]} 102. Kb4 {[%emt 0:00:01]} Nc6+ {[%emt 0:00:01]} 103. Ka4 {[%emt 0:00:04]} Kc4 {[%emt 0:00:01]} 104. Bg1 {[%emt 0:00:02]} Kd5 {[%emt 0:00:05]} 105. Bf2 {[%emt 0:00:01]} Ne5 {[%emt 0:00:12]} 106. Ka5 {[%emt 0:00:10]} Nd7 {[%emt 0:00:11]} 107. Kxa6 {[%emt 0:00:04]} Nxc5+ {[%emt 0:00:03]} 108. Bxc5 {[%emt 0:00:01]} Kxc5 {[%emt 0:00:01]} 1/2-1/2

[Event "Wuerttemberg Rapid Teams 2024"]
[Site "B?blingen, Germany"]
[Date "2024.04.13"]
[Round "8.4"]
[White "Junesch, Gerhard"]
[Black "Deubel, Silas"]
[Result "1-0"]
[ECO "D30"]
[WhiteElo "2267"]
[BlackElo "1851"]
[Annotator "RC"]
[PlyCount "65"]
[EventDate "2024.04.13"]
[EventType "team-tourn"]
[SourceTitle "playchess.com"]
[Source "ChessBase"]
[SourceQuality "1"]
[TimeControl "900+5"]

1. d4 {[%emt 0:00:31]} d5 {[%emt 0:00:02]} 2. c4 {[%emt 0:00:05]} e6 {[%emt 0:00:02]} 3. Nf3 {[%emt 0:00:02]} a6 {[%emt 0:00:14]} 4. Bg5 {[%emt 0:00:09]} Nf6 {[%emt 0:00:13]} 5. e3 {[%emt 0:00:27]} Be7 {[%emt 0:00:47]} 6. Nbd2 {[%emt 0:00:22]} O-O {[%emt 0:00:09]} 7. Rc1 {[%emt 0:00:10]} Nbd7 {[%emt 0:00:31]} 8. c5 {[%emt 0:00:22]} c6 {[%emt 0:00:17]} 9. Bd3 {[%emt 0:00:17]} Qc7 {[%emt 0:00:18]} 10. Bf4 {[%emt 0:00:15]} Qa5 {[%emt 0:00:45]} 11. a3 {[%emt 0:00:29]} Nh5 {[%emt 0:00:03]} 12. Qc2 {[%emt 0:02:06]} Nxf4 {[%emt 0:00:38]} 13. Bxh7+ {[%emt 0:00:25]} Kh8 {[%emt 0:00:01]} 14. exf4 {[%emt 0:00:03]} g6 {[%emt 0:00:01]} 15. Bxg6 {[%emt 0:00:06]} fxg6 {[%emt 0:00:01]} 16. Qxg6 {[%emt 0:00:04]} Qd8 {[%emt 0:00:37]} 17. Qh6+ {[%emt 0:00:42]} Kg8 {[%emt 0:00:02]} 18. Qg6+ {[%emt 0:00:01]} Kh8 {[%emt 0:00:00]} 19. Rc3 {[%emt 0:00:02]} Qe8 {[%emt 0:00:40]} 20. Qh6+ {[%emt 0:00:15]} Kg8 {[%emt 0:00:02]} 21. Ne5 {[%emt 0:00:24]} Rf5 {[%emt 0:03:02]} 22. Rg3+ {[%emt 0:00:19]} Bg5 {[%emt 0:00:12]} 23. Rxg5+ {[%emt 0:00:16]} Rxg5 {[%emt 0:00:04]} 24. Qxg5+ {[%emt 0:00:06]} Kh7 {[%emt 0:00:28]} 25. Ndf3 {[%emt 0:00:32]} Nxe5 {[%emt 0:01:10]} 26. Nxe5 {[%emt 0:00:35]} Ra7 {[%emt 0:00:03]} 27. O-O {[%emt 0:01:01]} b6 {[%emt 0:00:01]} 28. cxb6 {[%emt 0:00:10]} Rg7 {[%emt 0:00:06]} 29. Qh4+ {[%emt 0:00:07]} Kg8 {[%emt 0:00:06]} 30. Rc1 {[%emt 0:00:55]} Bd7 {[%emt 0:00:38]} 31. Rc3 {[%emt 0:00:16]} Qe7 {[%emt 0:00:22]} 32. Qxe7 {[%emt 0:00:13]} Rxe7 {[%emt 0:00:02]} 33. b7 {[%emt 0:00:03]} 1-0

[Event "Wuerttemberg Rapid Teams 2024"]
[Site "B?blingen, Germany"]
[Date "2024.04.13"]
[Round "8.5"]
[White "Kuklin, Valentin"]
[Black "Fischer, Andre"]
[Result "1-0"]
[ECO "C05"]
[WhiteElo "2367"]
[BlackElo "2248"]
[Annotator "RC"]
[PlyCount "61"]
[EventDate "2024.04.13"]
[EventType "team-tourn"]
[SourceTitle "playchess.com"]
[Source "ChessBase"]
[SourceQuality "1"]
[TimeControl "900+5"]

1. e4 {[%emt 0:00:02]} e6 {[%emt 0:00:08]} 2. d4 {[%emt 0:00:05]} d5 {[%emt 0:00:01]} 3. Nd2 {[%emt 0:00:03]} Nf6 {[%emt 0:00:04]} 4. e5 {[%emt 0:00:08]} Nfd7 {[%emt 0:00:02]} 5. f4 {[%emt 0:00:33]} c5 {[%emt 0:00:02]} 6. c3 {[%emt 0:00:01]} Nc6 {[%emt 0:00:02]} 7. Ndf3 {[%emt 0:00:04]} cxd4 {[%emt 0:00:27]} 8. cxd4 {[%emt 0:00:18]} f6 {[%emt 0:00:03]} 9. Bd3 {[%emt 0:01:09]} Bb4+ {[%emt 0:00:14]} 10. Bd2 {[%emt 0:00:58]} Qb6 {[%emt 0:01:23]} 11. Bxb4 {[%emt 0:00:23]} Qxb4+ {[%emt 0:00:28]} 12. Qd2 {[%emt 0:00:03]} f5 {[%emt 0:00:47]} 13. Qxb4 {[%emt 0:01:27]} Nxb4 {[%emt 0:00:00]} 14. Bb1 {[%emt 0:00:08]} a5 {[%emt 0:00:20]} 15. a3 {[%emt 0:00:04]} Nc6 {[%emt 0:00:11]} 16. Ne2 {[%emt 0:00:16]} b6 {[%emt 0:00:40]} 17. Nc3 {[%emt 0:01:30]} Ba6 {[%emt 0:00:02]} 18. Rg1 {[%emt 0:00:37]} Ne7 {[%emt 0:03:27]} 19. Ng5 {[%emt 0:01:32]} Nf8 {[%emt 0:00:03]} 20. Bc2 {[%emt 0:00:05]} Neg6 {[%emt 0:00:29]} 21. g3 {[%emt 0:00:18]} Ke7 {[%emt 0:00:15]} 22. Kd2 {[%emt 0:00:03]} Nd7 {[%emt 0:00:27]} 23. Ke3 {[%emt 0:00:14]} h5 {[%emt 0:01:30]} 24. h3 {[%emt 0:00:41]} Ngf8 {[%emt 0:00:25]} 25. Bxf5 {[%emt 0:00:36]} Rh6 {[%emt 0:00:48]} 26. Bc2 {[%emt 0:00:09]} b5 {[%emt 0:00:18]} 27. Bd3 {[%emt 0:00:34]} Nb6 {[%emt 0:00:08]} 28. b3 {[%emt 0:01:19]} Rc8 {[%emt 0:00:20]} 29. Rgc1 {[%emt 0:00:18]} Nc4+ {[%emt 0:00:13]} 30. bxc4 {[%emt 0:00:08]} dxc4 {[%emt 0:00:09]} 31. Be4 {[%emt 0:00:06]} 1-0

[Event "Wuerttemberg Rapid Teams 2024"]
[Site "B?blingen, Germany"]
[Date "2024.04.13"]
[Round "8.6"]
[White "Weiss, Oliver"]
[Black "Vujic, Branimir"]
[Result "1-0"]
[ECO "D00"]
[WhiteElo "2220"]
[BlackElo "2218"]
[Annotator "RC"]
[PlyCount "103"]
[EventDate "2024.04.13"]
[EventType "team-tourn"]
[SourceTitle "playchess.com"]
[Source "ChessBase"]
[SourceQuality "1"]
[TimeControl "900+5"]

1. d4 {[%emt 0:00:03]} d5 {[%emt 0:00:01]} 2. Bf4 {[%emt 0:00:02]} Nf6 {[%emt 0:00:03]} 3. e3 {[%emt 0:00:02]} c5 {[%emt 0:00:03]} 4. c3 {[%emt 0:00:07]} Nc6 {[%emt 0:00:03]} 5. Nd2 {[%emt 0:00:03]} Bf5 {[%emt 0:00:04]} 6. Qb3 {[%emt 0:00:08]} Qb6 {[%emt 0:00:20]} 7. dxc5 {[%emt 0:00:13]} Qxb3 {[%emt 0:00:02]} 8. axb3 {[%emt 0:00:03]} e5 {[%emt 0:00:02]} 9. Bg3 {[%emt 0:00:05]} Bxc5 {[%emt 0:00:01]} 10. Ngf3 {[%emt 0:00:59]} Bd6 {[%emt 0:00:16]} 11. Nd4 {[%emt 0:00:47]} exd4 {[%emt 0:01:30]} 12. Bxd6 {[%emt 0:00:03]} dxe3 {[%emt 0:00:01]} 13. fxe3 {[%emt 0:00:04]} O-O-O {[%emt 0:00:02]} 14. Bf4 {[%emt 0:02:06]} h6 {[%emt 0:00:34]} 15. Bb5 {[%emt 0:00:21]} Rd7 {[%emt 0:03:31]} 16. Nf3 {[%emt 0:00:50]} Re7 {[%emt 0:00:44]} 17. O-O {[%emt 0:00:37]} Bd7 {[%emt 0:00:06]} 18. Bxc6 {[%emt 0:00:26]} Bxc6 {[%emt 0:00:21]} 19. Rxa7 {[%emt 0:00:07]} Rhe8 {[%emt 0:00:02]} 20. Nd4 {[%emt 0:00:37]} Nh5 {[%emt 0:00:12]} 21. Nf5 {[%emt 0:00:28]} Nxf4 {[%emt 0:00:47]} 22. Nxe7+ {[%emt 0:00:07]} Rxe7 {[%emt 0:00:03]} 23. Rxf4 {[%emt 0:00:22]} Rxe3 {[%emt 0:00:16]} 24. Rxf7 {[%emt 0:00:24]} Kb8 {[%emt 0:00:21]} 25. Ra1 {[%emt 0:00:07]} g5 {[%emt 0:00:06]} 26. Rd1 {[%emt 0:00:22]} Re2 {[%emt 0:00:25]} 27. Rf2 {[%emt 0:00:03]} Re5 {[%emt 0:00:01]} 28. b4 {[%emt 0:00:10]} Kc7 {[%emt 0:00:08]} 29. h3 {[%emt 0:00:12]} h5 {[%emt 0:00:06]} 30. Rfd2 {[%emt 0:00:08]} Kb6 {[%emt 0:00:08]} 31. Rd4 {[%emt 0:00:05]} Re2 {[%emt 0:00:17]} 32. R1d2 {[%emt 0:00:03]} Re5 {[%emt 0:00:03]} 33. Kh2 {[%emt 0:00:08]} Kb5 {[%emt 0:00:21]} 34. g4 {[%emt 0:00:04]} h4 {[%emt 0:00:12]} 35. Kg2 {[%emt 0:00:09]} Ka4 {[%emt 0:00:12]} 36. Kf2 {[%emt 0:00:21]} Re7 {[%emt 0:00:51]} 37. Re2 {[%emt 0:00:27]} Rf7+ {[%emt 0:00:18]} 38. Ke1 {[%emt 0:00:10]} Bb5 {[%emt 0:00:21]} 39. Rf2 {[%emt 0:00:04]} Re7+ {[%emt 0:00:03]} 40. Kd2 {[%emt 0:00:06]} Bc4 {[%emt 0:00:01]} 41. Kc2 {[%emt 0:00:30]} Bb3+ {[%emt 0:00:01]} 42. Kd2 {[%emt 0:00:08]} Bc4 {[%emt 0:00:04]} 43. Rf3 {[%emt 0:02:24]} Re2+ {[%emt 0:00:09]} 44. Kc1 {[%emt 0:00:24]} Rh2 {[%emt 0:01:00]} 45. Rd2 {[%emt 0:00:58]} Rh1+ {[%emt 0:00:06]} 46. Kc2 {[%emt 0:00:16]} Bb3+ {[%emt 0:00:09]} 47. Kd3 {[%emt 0:00:04]} Bc4+ {[%emt 0:00:04]} 48. Kd4 {[%emt 0:00:03]} Kb3 {[%emt 0:00:02]} 49. Ke5 {[%emt 0:00:18]} Re1+ {[%emt 0:02:33]} 50. Kf6 {[%emt 0:00:04]} Be2 {[%emt 0:00:35]} 51. Re3 {[%emt 0:00:18]} Rf1+ {[%emt 0:00:13]} 52. Kxg5 {[%emt 0:00:02]} 1-0

[Event "Wuerttemberg Rapid Teams 2024"]
[Site "B?blingen, Germany"]
[Date "2024.04.13"]
[Round "8.7"]
[White "Schuh, Karsten"]
[Black "Wunder, Niklas"]
[Result "1/2-1/2"]
[ECO "A34"]
[WhiteElo "2133"]
[BlackElo "2071"]
[Annotator "RC"]
[PlyCount "100"]
[EventDate "2024.04.13"]
[EventType "team-tourn"]
[SourceTitle "playchess.com"]
[Source "ChessBase"]
[SourceQuality "1"]
[TimeControl "900+5"]

1. c4 {[%emt 0:00:01]} c5 {[%emt 0:00:11]} 2. g3 {[%emt 0:00:01]} Nf6 {[%emt 0:00:02]} 3. Bg2 {[%emt 0:00:01]} d5 {[%emt 0:00:02]} 4. cxd5 {[%emt 0:00:08]} Nxd5 {[%emt 0:00:02]} 5. Nc3 {[%emt 0:00:01]} Nc7 {[%emt 0:00:04]} 6. Nf3 {[%emt 0:00:09]} Nc6 {[%emt 0:00:04]} 7. O-O {[%emt 0:00:02]} e5 {[%emt 0:00:21]} 8. d3 {[%emt 0:00:01]} Be7 {[%emt 0:00:23]} 9. Nd2 {[%emt 0:00:08]} Bd7 {[%emt 0:00:33]} 10. Nc4 {[%emt 0:00:33]} b5 {[%emt 0:00:54]} 11. Ne3 {[%emt 0:00:07]} O-O {[%emt 0:00:24]} 12. f4 {[%emt 0:00:43]} exf4 {[%emt 0:00:30]} 13. gxf4 {[%emt 0:00:02]} Rb8 {[%emt 0:00:12]} 14. Ncd5 {[%emt 0:00:08]} Nxd5 {[%emt 0:00:52]} 15. Nxd5 {[%emt 0:00:03]} Bd6 {[%emt 0:00:08]} 16. e4 {[%emt 0:00:47]} Re8 {[%emt 0:00:53]} 17. Be3 {[%emt 0:01:27]} Ne7 {[%emt 0:01:43]} 18. Nc3 {[%emt 0:00:28]} Ng6 {[%emt 0:00:56]} 19. Qh5 {[%emt 0:00:18]} Qh4 {[%emt 0:00:36]} 20. Qxh4 {[%emt 0:02:40]} Nxh4 {[%emt 0:00:01]} 21. Bh1 {[%emt 0:00:01]} a5 {[%emt 0:00:52]} 22. Nd5 {[%emt 0:01:03]} Bg4 {[%emt 0:00:49]} 23. Kf2 {[%emt 0:00:22]} f5 {[%emt 0:00:44]} 24. e5 {[%emt 0:00:08]} Bf8 {[%emt 0:00:09]} 25. Rac1 {[%emt 0:01:44]} Rec8 {[%emt 0:00:43]} 26. d4 {[%emt 0:02:02]} cxd4 {[%emt 0:00:14]} 27. Bxd4 {[%emt 0:00:02]} Ng6 {[%emt 0:00:15]} 28. Be3 {[%emt 0:00:10]} Bh5 {[%emt 0:01:00]} 29. Rfe1 {[%emt 0:00:24]} Ne7 {[%emt 0:00:11]} 30. Ba7 {[%emt 0:01:09]} Rxc1 {[%emt 0:00:28]} 31. Rxc1 {[%emt 0:00:01]} Rd8 {[%emt 0:00:19]} 32. Nxe7+ {[%emt 0:01:11]} Bxe7 {[%emt 0:00:01]} 33. Rc7 {[%emt 0:00:01]} Bh4+ {[%emt 0:00:29]} 34. Ke3 {[%emt 0:00:01]} Be1 {[%emt 0:00:57]} 35. Rc2 {[%emt 0:01:14]} Bd1 {[%emt 0:00:28]} 36. Bb6 {[%emt 0:00:23]} Bxc2 {[%emt 0:00:46]} 37. Bxd8 {[%emt 0:00:01]} Kf8 {[%emt 0:00:13]} 38. Bc6 {[%emt 0:00:04]} Bb1 {[%emt 0:00:09]} 39. e6 {[%emt 0:00:02]} Bb4 {[%emt 0:00:06]} 40. a3 {[%emt 0:00:01]} Bc5+ {[%emt 0:00:06]} 41. Kf3 {[%emt 0:00:05]} b4 {[%emt 0:00:07]} 42. axb4 {[%emt 0:00:02]} axb4 {[%emt 0:00:03]} 43. Ke2 {[%emt 0:00:26]} Ba2 {[%emt 0:00:06]} 44. Bd7 {[%emt 0:00:01]} Bc4+ {[%emt 0:00:08]} 45. Kf3 {[%emt 0:00:02]} Bd5+ {[%emt 0:00:09]} 46. Kg3 {[%emt 0:00:02]} Be7 {[%emt 0:00:06]} 47. Ba5 {[%emt 0:00:03]} Bd6 {[%emt 0:00:03]} 48. Bd8 {[%emt 0:00:03]} Be7 {[%emt 0:00:06]} 49. Ba5 {[%emt 0:00:01]} Bd6 {[%emt 0:00:14]} 50. Bd8 {[%emt 0:00:03]} Be7 {[%emt 0:00:01]} 1/2-1/2

[Event "Wuerttemberg Rapid Teams 2024"]
[Site "B?blingen, Germany"]
[Date "2024.04.13"]
[Round "8.8"]
[White "Sokratov, Stanislav"]
[Black "Schuh, Bernd-Martin"]
[Result "0-1"]
[ECO "D02"]
[WhiteElo "2146"]
[BlackElo "1976"]
[Annotator "RC"]
[PlyCount "28"]
[EventDate "2024.04.13"]
[EventType "team-tourn"]
[SourceTitle "playchess.com"]
[Source "ChessBase"]
[SourceQuality "1"]
[TimeControl "900+5"]

1. d4 {[%emt 0:00:01]} d5 {[%emt 0:00:03]} 2. Nf3 {[%emt 0:00:02]} Nc6 {[%emt 0:00:02]} 3. Bf4 {[%emt 0:00:07]} Bg4 {[%emt 0:00:03]} 4. e3 {[%emt 0:00:14]} e6 {[%emt 0:00:54]} 5. c4 {[%emt 0:00:05]} Nf6 {[%emt 0:00:10]} 6. Nc3 {[%emt 0:00:04]} Bb4 {[%emt 0:00:24]} 7. Qa4 {[%emt 0:01:53]} Bxf3 {[%emt 0:00:19]} 8. gxf3 {[%emt 0:00:01]} O-O {[%emt 0:00:04]} 9. Be2 {[%emt 0:00:56]} dxc4 {[%emt 0:00:03]} 10. Qb5 {[%emt 0:01:24]} Nd5 {[%emt 0:00:40]} 11. a3 {[%emt 0:00:40]} Nxc3 {[%emt 0:00:13]} 12. Qxc4 {[%emt 0:00:21]} Nxe2+ {[%emt 0:00:03]} 13. axb4 {[%emt 0:00:05]} Nxf4 {[%emt 0:00:03]} 14. exf4 {[%emt 0:00:02]} Qxd4 {[%emt 0:00:03]} 0-1

[Event "Wuerttemberg Rapid Teams 2024"]
[Site "B?blingen, Germany"]
[Date "2024.04.13"]
[Round "8.9"]
[White "Zuferi, Enis"]
[Black "Kulm, Justin"]
[Result "0-1"]
[ECO "D02"]
[WhiteElo "2406"]
[BlackElo "1963"]
[Annotator "RC"]
[PlyCount "58"]
[EventDate "2024.04.13"]
[EventType "team-tourn"]
[SourceTitle "playchess.com"]
[Source "ChessBase"]
[SourceQuality "1"]
[TimeControl "900+5"]

1. Nf3 {[%emt 0:00:03]} Nf6 {[%emt 0:00:02]} 2. g3 {[%emt 0:00:01]} g6 {[%emt 0:00:03]} 3. Bg2 {[%emt 0:00:01]} Bg7 {[%emt 0:00:01]} 4. O-O {[%emt 0:00:02]} O-O {[%emt 0:00:01]} 5. d4 {[%emt 0:00:04]} d5 {[%emt 0:00:02]} 6. Bf4 {[%emt 0:00:11]} c5 {[%emt 0:00:02]} 7. dxc5 {[%emt 0:00:13]} Na6 {[%emt 0:00:29]} 8. Qc1 {[%emt 0:00:28]} Nxc5 {[%emt 0:01:18]} 9. c4 {[%emt 0:00:55]} dxc4 {[%emt 0:04:40]} 10. Qxc4 {[%emt 0:00:38]} Qd5 {[%emt 0:00:01]} 11. Qxd5 {[%emt 0:02:18]} Nxd5 {[%emt 0:00:01]} 12. Be5 {[%emt 0:00:02]} f6 {[%emt 0:01:07]} 13. Bd4 {[%emt 0:00:47]} Ne6 {[%emt 0:00:04]} 14. Rd1 {[%emt 0:00:59]} Nb4 {[%emt 0:01:57]} 15. Nc3 {[%emt 0:01:50]} Nc2 {[%emt 0:02:49]} 16. Rac1 {[%emt 0:00:01]} Ncxd4 {[%emt 0:00:01]} 17. Nxd4 {[%emt 0:00:02]} Nxd4 {[%emt 0:00:24]} 18. Rxd4 {[%emt 0:00:01]} f5 {[%emt 0:00:27]} 19. Rb4 {[%emt 0:01:07]} Rb8 {[%emt 0:00:59]} 20. Nd5 {[%emt 0:00:30]} Kf7 {[%emt 0:00:17]} 21. Rc7 {[%emt 0:00:30]} Re8 {[%emt 0:00:30]} 22. f4 {[%emt 0:01:10]} Kf8 {[%emt 0:00:18]} 23. Nc3 {[%emt 0:00:22]} Rd8 {[%emt 0:00:47]} 24. Bxb7 {[%emt 0:01:46]} Be6 {[%emt 0:00:19]} 25. Kg2 {[%emt 0:01:33]} Bd4 {[%emt 0:00:22]} 26. Nb5 {[%emt 0:00:23]} Bb6 {[%emt 0:00:05]} 27. Nxa7 {[%emt 0:01:13]} Bxc7 {[%emt 0:00:04]} 28. Kf2 {[%emt 0:00:04]} Bd6 {[%emt 0:00:04]} 29. Rb5 {[%emt 0:00:04]} Bc4 {[%emt 0:00:04]} 0-1

[Event "Wuerttemberg Rapid Teams 2024"]
[Site "B?blingen, Germany"]
[Date "2024.04.13"]
[Round "8.10"]
[White "Huber, Philipp"]
[Black "Bueble, Joschua"]
[Result "1-0"]
[ECO "D00"]
[WhiteElo "2306"]
[BlackElo "1972"]
[Annotator "RC"]
[PlyCount "81"]
[EventDate "2024.04.13"]
[EventType "team-tourn"]
[SourceTitle "playchess.com"]
[Source "ChessBase"]
[SourceQuality "1"]
[TimeControl "900+5"]

1. d4 {[%emt 0:00:05]} Nf6 {[%emt 0:00:03]} 2. Bg5 {[%emt 0:00:00]} d5 {[%emt 0:00:01]} 3. Bxf6 {[%emt 0:00:00]} exf6 {[%emt 0:00:06]} 4. e3 {[%emt 0:00:01]} Bd6 {[%emt 0:00:23]} 5. Bd3 {[%emt 0:00:08]} O-O {[%emt 0:00:12]} 6. Qf3 {[%emt 0:00:14]} Be6 {[%emt 0:01:16]} 7. g4 {[%emt 0:00:06]} c5 {[%emt 0:00:32]} 8. c3 {[%emt 0:00:19]} Qd7 {[%emt 0:00:40]} 9. h3 {[%emt 0:00:03]} Nc6 {[%emt 0:00:34]} 10. Ne2 {[%emt 0:00:05]} Ne7 {[%emt 0:00:11]} 11. Nf4 {[%emt 0:00:17]} cxd4 {[%emt 0:00:27]} 12. cxd4 {[%emt 0:00:30]} Rac8 {[%emt 0:02:03]} 13. Nc3 {[%emt 0:00:03]} Bxf4 {[%emt 0:00:39]} 14. Qxf4 {[%emt 0:00:16]} a6 {[%emt 0:00:56]} 15. Kd2 {[%emt 0:03:28]} b5 {[%emt 0:00:51]} 16. b3 {[%emt 0:00:02]} Qc7 {[%emt 0:00:16]} 17. Qxc7 {[%emt 0:00:06]} Rxc7 {[%emt 0:00:02]} 18. a3 {[%emt 0:00:43]} Rfc8 {[%emt 0:00:04]} 19. Na2 {[%emt 0:00:08]} Nc6 {[%emt 0:02:04]} 20. b4 {[%emt 0:00:04]} Nb8 {[%emt 0:00:32]} 21. Nc1 {[%emt 0:00:16]} Nd7 {[%emt 0:00:00]} 22. Nb3 {[%emt 0:00:01]} g6 {[%emt 0:00:46]} 23. Nc5 {[%emt 0:00:08]} Rc6 {[%emt 0:00:45]} 24. f4 {[%emt 0:00:28]} f5 {[%emt 0:00:23]} 25. gxf5 {[%emt 0:00:02]} Nxc5 {[%emt 0:00:07]} 26. dxc5 {[%emt 0:00:41]} Bxf5 {[%emt 0:00:04]} 27. Bxf5 {[%emt 0:00:02]} gxf5 {[%emt 0:00:01]} 28. Rhg1+ {[%emt 0:00:01]} Rg6 {[%emt 0:00:03]} 29. a4 {[%emt 0:00:17]} Rb8 {[%emt 0:00:09]} 30. Rxg6+ {[%emt 0:00:07]} hxg6 {[%emt 0:00:14]} 31. Kc3 {[%emt 0:00:02]} Re8 {[%emt 0:00:20]} 32. axb5 {[%emt 0:00:07]} axb5 {[%emt 0:00:05]} 33. Kd4 {[%emt 0:00:05]} Re4+ {[%emt 0:00:02]} 34. Kxd5 {[%emt 0:00:01]} Rxb4 {[%emt 0:00:07]} 35. c6 {[%emt 0:00:21]} Rc4 {[%emt 0:00:10]} 36. Ra8+ {[%emt 0:00:02]} Kg7 {[%emt 0:00:02]} 37. Rb8 {[%emt 0:00:01]} Rc3 {[%emt 0:00:27]} 38. Rxb5 {[%emt 0:00:07]} Rd3+ {[%emt 0:00:06]} 39. Kc4 {[%emt 0:00:12]} Rxe3 {[%emt 0:00:01]} 40. c7 {[%emt 0:00:04]} Re1 {[%emt 0:00:01]} 41. Rc5 {[%emt 0:00:07]} 1-0